[Event "MČR v bleskovém šachu družstev 2019"]
[Site "Teplice, Czech Republic"]
[Date "2019.09.14"]
[Round "9.3"]
[White "Svanda, Ondrej"]
[Black "Stocek, Jiri"]
[Result "1/2-1/2"]
[TimeControl "3 mim. + 2 s"]
[WhiteTitle "FM"]
[BlackTitle "GM"]
[WhiteFideId "359670"]
[BlackFideId "304760"]
[WhiteElo "1924"]
[BlackElo "2505"]

1. e4 {[%clk 00:03:02]} {[%emt 00:00:01]} e6 {[%clk 00:03:02]} {[%emt
00:00:02]} 2. d4 {[%clk 00:03:01]} {[%emt 00:00:04]} d5 {[%clk 00:03:03]} 3.
Nc3 {[%clk 00:03:01]} {[%emt 00:00:01]} Bb4 {[%clk 00:03:04]} {[%emt 00:00:02]}
4. e5 {[%clk 00:02:59]} {[%emt 00:00:05]} c5 {[%clk 00:03:04]} {[%emt
00:00:01]} 5. Bd2 {[%clk 00:03:00]} Ne7 {[%clk 00:03:01]} {[%emt 00:00:04]} 6.
Nb5 {[%clk 00:02:55]} {[%emt 00:00:07]} Bxd2+ {[%clk 00:03:01]} {[%emt
00:00:02]} 7. Qxd2 {[%clk 00:02:56]} {[%emt 00:00:02]} O-O {[%clk 00:03:01]}
{[%emt 00:00:02]} 8. f4 {[%clk 00:02:55]} {[%emt 00:00:04]} Bd7 {[%clk
00:03:00]} {[%emt 00:00:03]} 9. Nd6 {[%clk 00:02:35]} {[%emt 00:00:21]} cxd4
{[%clk 00:02:57]} {[%emt 00:00:05]} 10. Nf3 {[%clk 00:02:36]} {[%emt 00:00:02]}
Nbc6 {[%clk 00:02:16]} {[%emt 00:00:44]} 11. Bd3 {[%clk 00:02:37]} {[%emt
00:00:01]} f5 {[%clk 00:02:01]} {[%emt 00:00:17]} 12. O-O {[%clk 00:02:19]}
{[%emt 00:00:19]} Nc8 {[%clk 00:01:58]} {[%emt 00:00:05]} 13. Nxc8 {[%clk
00:02:11]} {[%emt 00:00:11]} Rxc8 {[%clk 00:01:58]} {[%emt 00:00:01]} 14. Qf2
{[%clk 00:02:11]} {[%emt 00:00:02]} Qb6 {[%clk 00:01:57]} {[%emt 00:00:04]} 15.
b3 {[%clk 00:01:43]} {[%emt 00:00:30]} h6 {[%clk 00:01:53]} {[%emt 00:00:06]}
16. a4 {[%clk 00:01:40]} {[%emt 00:00:05]} Be8 {[%clk 00:01:52]} {[%emt
00:00:03]} 17. a5 {[%clk 00:01:07]} {[%emt 00:00:36]} Qc5 {[%clk 00:01:40]}
{[%emt 00:00:14]} 18. a6 {[%clk 00:01:00]} {[%emt 00:00:09]} bxa6 {[%clk
00:01:38]} {[%emt 00:00:03]} 19. Bxa6 {[%clk 00:00:58]} {[%emt 00:00:04]} Rc7
{[%clk 00:01:38]} {[%emt 00:00:02]} 20. Rfd1 {[%clk 00:00:39]} {[%emt
00:00:21]} Bh5 {[%clk 00:01:37]} {[%emt 00:00:03]} 21. c4 {[%clk 00:00:14]}
{[%emt 00:00:28]} Nb4 {[%clk 00:01:15]} {[%emt 00:00:24]} 22. Bb5 {[%clk
00:00:03]} {[%emt 00:00:13]} Bxf3 {[%clk 00:00:58]} {[%emt 00:00:18]} 23. gxf3
{[%clk 00:00:03]} {[%emt 00:00:02]} Ra8 {[%clk 00:00:46]} {[%emt 00:00:13]} 24.
Rac1 {[%clk 00:00:04]} {[%emt 00:00:01]} a6 {[%clk 00:00:45]} {[%emt 00:00:03]}
25. Ba4 {[%clk 00:00:06]} Rac8 {[%clk 00:00:42]} {[%emt 00:00:05]} 26. Qxd4
{[%clk 00:00:05]} {[%emt 00:00:03]} Qxd4+ {[%clk 00:00:28]} {[%emt 00:00:16]}
27. Rxd4 {[%clk 00:00:06]} {[%emt 00:00:01]} Rc5 {[%clk 00:00:22]} {[%emt
00:00:08]} 28. Kg2 {[%clk 00:00:04]} {[%emt 00:00:04]} Ra5 {[%clk 00:00:19]}
{[%emt 00:00:05]} 29. Bd7 {[%clk 00:00:05]} {[%emt 00:00:01]} Rc7 {[%clk
00:00:15]} {[%emt 00:00:05]} 30. Bxe6+ {[%clk 00:00:06]} {[%emt 00:00:01]} Kf8
{[%clk 00:00:16]} {[%emt 00:00:01]} 31. Bxf5 {[%clk 00:00:07]} {[%emt
00:00:02]} Ke7 {[%clk 00:00:13]} {[%emt 00:00:05]} 32. Kg3 {[%clk 00:00:08]}
{[%emt 00:00:01]} Rac5 {[%clk 00:00:10]} {[%emt 00:00:05]} 33. Bb1 {[%clk
00:00:07]} {[%emt 00:00:03]} dxc4 {[%clk 00:00:10]} {[%emt 00:00:03]} 34. Rdxc4
{[%clk 00:00:07]} {[%emt 00:00:01]} Rxc4 {[%clk 00:00:10]} {[%emt 00:00:02]} 35.
Rxc4 {[%clk 00:00:08]} {[%emt 00:00:01]} Rxc4 {[%clk 00:00:11]} {[%emt
00:00:01]} 36. bxc4 {[%clk 00:00:10]} a5 {[%clk 00:00:12]} {[%emt 00:00:02]} 37.
f5 {[%clk 00:00:10]} {[%emt 00:00:02]} a4 {[%clk 00:00:13]} 38. c5 {[%clk
00:00:09]} {[%emt 00:00:03]} a3 {[%clk 00:00:12]} {[%emt 00:00:03]} 39. Kf4
{[%clk 00:00:09]} {[%emt 00:00:02]} Nd3+ {[%clk 00:00:12]} {[%emt 00:00:02]} 40.
Ke3 {[%clk 00:00:05]} {[%emt 00:00:05]} Nxc5 {[%clk 00:00:11]} {[%emt
00:00:03]} 41. Ba2 {[%clk 00:00:06]} {[%emt 00:00:02]} Na4 {[%clk 00:00:11]}
{[%emt 00:00:02]} 42. Kd3 {[%clk 00:00:05]} {[%emt 00:00:03]} Nb6 {[%clk
00:00:08]} {[%emt 00:00:05]} 43. Kd4 {[%clk 00:00:05]} {[%emt 00:00:02]} Nd7
{[%clk 00:00:07]} {[%emt 00:00:03]} 44. f4 {[%clk 00:00:05]} {[%emt 00:00:02]}
Nb8 {[%clk 00:00:06]} {[%emt 00:00:03]} 45. Kc5 {[%clk 00:00:04]} {[%emt
00:00:03]} Na6+ {[%clk 00:00:05]} {[%emt 00:00:03]} 46. Kb5 {[%clk 00:00:05]}
Nb8 {[%clk 00:00:04]} {[%emt 00:00:04]} 47. Kb4 {[%clk 00:00:06]} {[%emt
00:00:01]} Nc6+ {[%clk 00:00:05]} 48. Kxa3 {[%clk 00:00:07]} {[%emt 00:00:02]}
Nd4 {[%clk 00:00:06]} 49. Bb1 {[%clk 00:00:06]} {[%emt 00:00:03]} Ne2 {[%clk
00:00:06]} {[%emt 00:00:02]} 50. Kb4 {[%clk 00:00:06]} {[%emt 00:00:02]} Nxf4
{[%clk 00:00:06]} {[%emt 00:00:01]} 51. Kc3 {[%clk 00:00:06]} {[%emt 00:00:03]}
1/2-1/2

[Event "MČR v bleskovém šachu družstev 2019"]
[Site "Teplice, Czech Republic"]
[Date "2019.09.14"]
[Round "9.4"]
[White "Vymazal, Bronislav"]
[Black "Skacelik, Petr"]
[Result "1-0"]
[TimeControl "3 mim. + 2 s"]
[WhiteFideId "318396"]
[BlackFideId "307904"]
[WhiteElo "2309"]
[BlackElo "2078"]

1. g3 {[%clk 00:03:02]} {[%emt 00:00:01]} g6 {[%clk 00:03:04]} 2. Bg2 {[%clk
00:03:03]} Bg7 {[%clk 00:03:05]} 3. f4 {[%clk 00:03:05]} {[%emt 00:00:02]} c5
{[%clk 00:03:03]} {[%emt 00:00:04]} 4. Nf3 {[%clk 00:03:06]} Nc6 {[%clk
00:03:04]} 5. d3 {[%clk 00:03:07]} {[%emt 00:00:01]} d6 {[%clk 00:03:03]}
{[%emt 00:00:03]} 6. O-O {[%clk 00:03:07]} {[%emt 00:00:02]} Nf6 {[%clk
00:03:04]} {[%emt 00:00:01]} 7. e4 {[%clk 00:03:07]} {[%emt 00:00:01]} O-O
{[%clk 00:03:04]} {[%emt 00:00:02]} 8. c4 {[%clk 00:03:08]} {[%emt 00:00:01]}
e6 {[%clk 00:03:03]} {[%emt 00:00:03]} 9. Nc3 {[%clk 00:03:08]} {[%emt
00:00:01]} a6 {[%clk 00:02:59]} {[%emt 00:00:06]} 10. h3 {[%clk 00:03:03]}
{[%emt 00:00:07]} Nd4 {[%clk 00:02:51]} {[%emt 00:00:10]} 11. Nxd4 {[%clk
00:03:02]} {[%emt 00:00:04]} cxd4 {[%clk 00:02:52]} 12. Ne2 {[%clk 00:03:03]}
{[%emt 00:00:01]} e5 {[%clk 00:02:41]} {[%emt 00:00:13]} 13. g4 {[%clk
00:02:52]} {[%emt 00:00:12]} Nd7 {[%clk 00:02:22]} {[%emt 00:00:21]} 14. f5
{[%clk 00:02:31]} {[%emt 00:00:24]} Rb8 {[%clk 00:02:17]} {[%emt 00:00:06]} 15.
g5 {[%clk 00:02:07]} {[%emt 00:00:26]} f6 {[%clk 00:02:19]} 16. h4 {[%clk
00:02:06]} {[%emt 00:00:03]} b5 {[%clk 00:02:17]} {[%emt 00:00:03]} 17. b3
{[%clk 00:02:07]} {[%emt 00:00:01]} bxc4 {[%clk 00:02:14]} {[%emt 00:00:05]} 18.
bxc4 {[%clk 00:02:07]} {[%emt 00:00:02]} Nc5 {[%clk 00:02:15]} 19. Ng3 {[%clk
00:01:54]} {[%emt 00:00:16]} Bd7 {[%clk 00:02:04]} {[%emt 00:00:13]} 20. Bh3
{[%clk 00:01:18]} {[%emt 00:00:38]} Qe7 {[%clk 00:01:56]} {[%emt 00:00:10]} 21.
Qf3 {[%clk 00:01:13]} {[%emt 00:00:06]} Rf7 {[%clk 00:01:49]} {[%emt 00:00:09]}
22. Rf2 {[%clk 00:01:07]} {[%emt 00:00:08]} Rbf8 {[%clk 00:01:41]} {[%emt
00:00:10]} 23. Bd2 {[%clk 00:01:03]} {[%emt 00:00:05]} Kh8 {[%clk 00:01:14]}
{[%emt 00:00:29]} 24. Raf1 {[%clk 00:01:04]} {[%emt 00:00:01]} Ba4 {[%clk
00:01:10]} {[%emt 00:00:06]} 25. Bc1 {[%clk 00:01:02]} {[%emt 00:00:04]} Qb7
{[%clk 00:01:06]} {[%emt 00:00:05]} 26. Rh2 {[%clk 00:00:14]} {[%emt 00:00:51]}
Qb1 {[%clk 00:01:04]} {[%emt 00:00:04]} 27. gxf6 {[%clk 00:00:10]} {[%emt
00:00:06]} Bxf6 {[%clk 00:01:04]} {[%emt 00:00:03]} 28. Bh6 {[%clk 00:00:09]}
{[%emt 00:00:02]} Rg8 {[%clk 00:01:03]} {[%emt 00:00:03]} 29. Rxb1 {[%emt
00:00:09]} 1-0

[Event "MČR v bleskovém šachu družstev 2019"]
[Site "Teplice, Czech Republic"]
[Date "2019.09.14"]
[Round "9.5"]
[White "Bernasek, Jan"]
[Black "Jirovsky, Milos"]
[Result "1-0"]
[TimeControl "3 mim. + 2 s"]
[WhiteTitle "GM"]
[BlackTitle "GM"]
[WhiteFideId "311995"]
[BlackFideId "303224"]
[WhiteElo "2526"]
[BlackElo "2499"]

1. d4 {[%clk 00:03:03]} d5 {[%clk 00:03:03]} {[%emt 00:00:02]} 2. c4 {[%clk
00:03:05]} e6 {[%clk 00:03:05]} 3. Nc3 {[%clk 00:03:06]} Nf6 {[%clk 00:03:06]}
4. cxd5 {[%clk 00:03:07]} exd5 {[%clk 00:03:07]} 5. Bg5 {[%clk 00:03:08]} c6
{[%clk 00:03:09]} {[%emt 00:00:02]} 6. Qc2 {[%clk 00:03:08]} {[%emt 00:00:01]}
Na6 {[%clk 00:03:04]} {[%emt 00:00:07]} 7. a3 {[%clk 00:03:06]} {[%emt
00:00:05]} Nc7 {[%clk 00:03:03]} {[%emt 00:00:02]} 8. e3 {[%clk 00:03:05]}
{[%emt 00:00:03]} Be7 {[%clk 00:03:04]} {[%emt 00:00:01]} 9. Bd3 {[%clk
00:03:06]} {[%emt 00:00:01]} Ne6 {[%clk 00:03:05]} 10. Bh4 {[%clk 00:03:07]}
{[%emt 00:00:01]} g6 {[%clk 00:03:06]} 11. Nf3 {[%clk 00:03:03]} {[%emt
00:00:06]} Ng7 {[%clk 00:03:07]} {[%emt 00:00:01]} 12. Ne5 {[%clk 00:02:50]}
{[%emt 00:00:15]} Bf5 {[%clk 00:03:04]} {[%emt 00:00:05]} 13. O-O {[%clk
00:02:43]} {[%emt 00:00:09]} O-O {[%clk 00:03:02]} {[%emt 00:00:04]} 14. b4
{[%clk 00:02:37]} {[%emt 00:00:08]} Rc8 {[%clk 00:02:56]} {[%emt 00:00:08]} 15.
Qe2 {[%clk 00:01:57]} {[%emt 00:00:42]} Re8 {[%clk 00:02:20]} {[%emt 00:00:39]}
16. Rab1 {[%clk 00:01:45]} {[%emt 00:00:14]} Nd7 {[%clk 00:02:09]} {[%emt
00:00:13]} 17. Bg3 {[%clk 00:01:31]} {[%emt 00:00:16]} Bf6 {[%clk 00:01:43]}
{[%emt 00:00:28]} 18. f4 {[%clk 00:01:23]} {[%emt 00:00:10]} Bxd3 {[%clk
00:01:36]} {[%emt 00:00:09]} 19. Qxd3 {[%clk 00:01:24]} {[%emt 00:00:01]} Nf5
{[%clk 00:01:21]} {[%emt 00:00:17]} 20. Bf2 {[%clk 00:01:23]} {[%emt 00:00:03]}
b5 {[%clk 00:01:19]} {[%emt 00:00:04]} 21. Ne2 {[%clk 00:01:12]} {[%emt
00:00:13]} Nb6 {[%clk 00:01:10]} {[%emt 00:00:10]} 22. g4 {[%clk 00:01:02]}
{[%emt 00:00:12]} Nd6 {[%clk 00:01:10]} {[%emt 00:00:02]} 23. Ng3 {[%clk
00:01:02]} {[%emt 00:00:02]} Bg7 {[%clk 00:01:08]} {[%emt 00:00:05]} 24. Rbe1
{[%clk 00:00:52]} {[%emt 00:00:12]} f6 {[%clk 00:01:05]} {[%emt 00:00:06]} 25.
Nf3 {[%clk 00:00:53]} Nbc4 {[%clk 00:01:05]} {[%emt 00:00:02]} 26. g5 {[%clk
00:00:52]} {[%emt 00:00:03]} Ne4 {[%clk 00:00:45]} {[%emt 00:00:22]} 27. gxf6
{[%clk 00:00:50]} {[%emt 00:00:04]} Bxf6 {[%clk 00:00:46]} 28. Ne5 {[%clk
00:00:51]} {[%emt 00:00:01]} Ncd2 {[%clk 00:00:39]} {[%emt 00:00:09]} 29. Nxe4
{[%clk 00:00:48]} {[%emt 00:00:04]} Nxe4 {[%clk 00:00:40]} {[%emt 00:00:01]} 30.
Bg3 {[%clk 00:00:48]} {[%emt 00:00:03]} Rf8 {[%clk 00:00:31]} {[%emt 00:00:11]}
31. Rc1 {[%clk 00:00:49]} {[%emt 00:00:01]} Bxe5 {[%clk 00:00:29]} {[%emt
00:00:03]} 32. dxe5 {[%clk 00:00:49]} {[%emt 00:00:01]} Qd7 {[%clk 00:00:30]}
{[%emt 00:00:01]} 33. Qd4 {[%clk 00:00:50]} {[%emt 00:00:01]} Qh3 {[%clk
00:00:24]} {[%emt 00:00:08]} 34. Rf3 {[%clk 00:00:45]} {[%emt 00:00:07]} Rf5
{[%clk 00:00:19]} {[%emt 00:00:07]} 35. Rxc6 {[%clk 00:00:45]} {[%emt
00:00:03]} Rd8 {[%clk 00:00:15]} {[%emt 00:00:05]} 36. Rc2 {[%clk 00:00:40]}
{[%emt 00:00:07]} Rh5 {[%clk 00:00:16]} {[%emt 00:00:01]} 37. Rg2 {[%clk
00:00:39]} {[%emt 00:00:03]} Qg4 {[%clk 00:00:16]} {[%emt 00:00:02]} 38. Rf1
{[%clk 00:00:39]} {[%emt 00:00:02]} Qe6 {[%clk 00:00:16]} {[%emt 00:00:02]} 39.
Qxa7 {[%clk 00:00:33]} {[%emt 00:00:08]} Rc8 {[%clk 00:00:17]} 40. a4 {[%clk
00:00:33]} {[%emt 00:00:02]} bxa4 {[%clk 00:00:18]} {[%emt 00:00:01]} 41. Qxa4
Rb8 {[%clk 00:00:16]} {[%emt 00:00:04]} 42. Qb3 {[%clk 00:00:33]} {[%emt
00:00:03]} Kg7 {[%clk 00:00:16]} {[%emt 00:00:02]} 43. Rd1 {[%clk 00:00:33]}
{[%emt 00:00:01]} Qb6 {[%clk 00:00:16]} {[%emt 00:00:02]} 44. Rd4 {[%clk
00:00:32]} {[%emt 00:00:03]} Qb5 {[%clk 00:00:12]} {[%emt 00:00:06]} 45. Qxd5
Qxd5 {[%clk 00:00:14]} 46. Rxd5 {[%clk 00:00:31]} {[%emt 00:00:01]} Rxb4 {[%clk
00:00:16]} 47. Rc2 {[%clk 00:00:30]} {[%emt 00:00:02]} Rb3 {[%clk 00:00:15]}
{[%emt 00:00:03]} 48. Rd7+ {[%clk 00:00:31]} {[%emt 00:00:01]} Kh6 {[%clk
00:00:17]} 49. Rcc7 {[%clk 00:00:31]} {[%emt 00:00:01]} Rb1+ {[%clk 00:00:15]}
{[%emt 00:00:04]} 50. Kg2 {[%emt 00:00:03]} Rb2+ 51. Kf3 {[%clk 00:00:29]}
{[%emt 00:00:03]} Nd2+ {[%clk 00:00:18]} 52. Ke2 {[%clk 00:00:30]} {[%emt
00:00:01]} Nc4+ {[%clk 00:00:16]} {[%emt 00:00:04]} 53. Kd3 {[%clk 00:00:27]}
{[%emt 00:00:05]} Rd2+ {[%clk 00:00:17]} {[%emt 00:00:02]} 54. Kxc4 {[%clk
00:00:28]} 1-0

[Event "MČR v bleskovém šachu družstev 2019"]
[Site "Teplice, Czech Republic"]
[Date "2019.09.14"]
[Round "9.6"]
[White "Sokolov, Alexander"]
[Black "Cernousek, Lukas"]
[Result "1/2-1/2"]
[TimeControl "3 mim. + 2 s"]
[WhiteTitle "FM"]
[BlackTitle "IM"]
[WhiteFideId "4119177"]
[BlackFideId "311707"]
[WhiteElo "2417"]
[BlackElo "2473"]

1. e4 {[%clk 00:03:02]} e6 {[%clk 00:03:04]} 2. d4 {[%clk 00:03:03]} {[%emt
00:00:01]} d5 {[%clk 00:03:05]} 3. Nd2 {[%clk 00:03:05]} Nc6 {[%clk 00:03:04]}
{[%emt 00:00:03]} 4. Ngf3 {[%clk 00:03:05]} {[%emt 00:00:01]} Nf6 {[%clk
00:03:05]} {[%emt 00:00:01]} 5. e5 {[%clk 00:03:04]} {[%emt 00:00:03]} Nd7
{[%clk 00:03:06]} {[%emt 00:00:01]} 6. Be2 {[%clk 00:03:05]} Be7 {[%clk
00:02:53]} {[%emt 00:00:15]} 7. O-O {[%clk 00:03:02]} {[%emt 00:00:06]} O-O
{[%clk 00:02:47]} {[%emt 00:00:07]} 8. c3 {[%clk 00:03:02]} {[%emt 00:00:03]}
f6 {[%clk 00:02:47]} {[%emt 00:00:02]} 9. exf6 {[%clk 00:03:02]} {[%emt
00:00:02]} Bxf6 {[%clk 00:02:49]} 10. Bd3 {[%clk 00:02:57]} {[%emt 00:00:07]}
e5 {[%clk 00:02:47]} {[%emt 00:00:03]} 11. dxe5 {[%clk 00:02:56]} {[%emt
00:00:03]} Ncxe5 {[%clk 00:02:47]} {[%emt 00:00:02]} 12. Be2 {[%clk 00:02:44]}
{[%emt 00:00:14]} c6 {[%clk 00:02:40]} {[%emt 00:00:09]} 13. Nd4 {[%clk
00:02:33]} {[%emt 00:00:13]} Nc5 {[%clk 00:02:34]} {[%emt 00:00:08]} 14. N2f3
{[%clk 00:02:32]} {[%emt 00:00:03]} Ne4 {[%clk 00:02:26]} {[%emt 00:00:10]} 15.
h3 {[%clk 00:02:04]} {[%emt 00:00:31]} Ng6 {[%clk 00:02:09]} {[%emt 00:00:19]}
16. Bd3 {[%clk 00:01:50]} {[%emt 00:00:16]} c5 {[%clk 00:01:33]} {[%emt
00:00:37]} 17. Nc2 {[%clk 00:01:25]} {[%emt 00:00:26]} Bf5 {[%clk 00:00:45]}
{[%emt 00:00:50]} 18. Ne3 {[%clk 00:01:23]} {[%emt 00:00:05]} Be6 {[%clk
00:00:43]} {[%emt 00:00:04]} 19. c4 {[%clk 00:01:24]} {[%emt 00:00:01]} Ng5
{[%clk 00:00:06]} {[%emt 00:00:38]} 20. Nxg5 {[%clk 00:01:17]} {[%emt
00:00:09]} Bxg5 {[%clk 00:00:06]} {[%emt 00:00:02]} 21. Bxg6 {[%clk 00:01:16]}
{[%emt 00:00:03]} hxg6 {[%clk 00:00:04]} {[%emt 00:00:04]} 22. Nxd5 {[%clk
00:01:14]} {[%emt 00:00:03]} Bxc1 {[%clk 00:00:04]} {[%emt 00:00:03]} 23. Rxc1
{[%clk 00:01:16]} Bxd5 {[%clk 00:00:04]} {[%emt 00:00:02]} 24. Qxd5+ {[%clk
00:01:14]} {[%emt 00:00:03]} Qxd5 {[%clk 00:00:05]} 25. cxd5 {[%clk 00:01:16]}
{[%emt 00:00:01]} b6 {[%clk 00:00:06]} 26. Rfe1 {[%clk 00:01:14]} {[%emt
00:00:03]} Rad8 {[%clk 00:00:07]} {[%emt 00:00:02]} 27. Rcd1 {[%clk 00:01:16]}
Rf5 {[%clk 00:00:08]} {[%emt 00:00:02]} 28. Re7 {[%clk 00:01:17]} Rfxd5 {[%clk
00:00:08]} {[%emt 00:00:02]} 29. Rxd5 {[%clk 00:01:17]} {[%emt 00:00:02]} Rxd5
{[%clk 00:00:10]} 30. Rxa7 {[%clk 00:01:18]} {[%emt 00:00:02]} Rd1+ {[%clk
00:00:11]} 31. Kh2 {[%clk 00:01:19]} {[%emt 00:00:02]} Rd2 {[%clk 00:00:12]} 32.
b3 {[%clk 00:01:10]} {[%emt 00:00:11]} Rxf2 {[%clk 00:00:13]} {[%emt 00:00:01]}
1/2-1/2

[Event "MČR v bleskovém šachu družstev 2019"]
[Site "Teplice, Czech Republic"]
[Date "2019.09.14"]
[Round "9.7"]
[White "Vrbata, Zbynek"]
[Black "Dolezal, Radoslav"]
[Result "1/2-1/2"]
[TimeControl "3 mim. + 2 s"]
[WhiteTitle "FM"]
[BlackTitle "IM"]
[WhiteFideId "301256"]
[BlackFideId "304735"]
[WhiteElo "2324"]
[BlackElo "2359"]

1. d4 {[%clk 00:03:03]} {[%emt 00:02:44]} Nf6 {[%clk 00:03:02]} {[%emt
00:00:02]} 2. c4 {[%clk 00:03:04]} {[%emt 00:00:01]} e6 {[%clk 00:03:03]}
{[%emt 00:00:01]} 3. Nc3 {[%clk 00:03:05]} {[%emt 00:00:02]} Bb4 {[%clk
00:03:04]} {[%emt 00:00:01]} 4. Nf3 {[%clk 00:03:04]} {[%emt 00:00:02]} O-O
{[%clk 00:03:03]} {[%emt 00:00:02]} 5. g3 {[%clk 00:03:04]} {[%emt 00:00:02]}
d6 {[%clk 00:03:00]} {[%emt 00:00:06]} 6. Qc2 {[%clk 00:02:59]} {[%emt
00:00:07]} Nc6 {[%clk 00:02:53]} {[%emt 00:00:09]} 7. Bg2 {[%clk 00:02:52]}
{[%emt 00:00:09]} e5 {[%clk 00:02:52]} {[%emt 00:00:04]} 8. dxe5 {[%clk
00:02:30]} {[%emt 00:00:24]} dxe5 {[%clk 00:02:44]} {[%emt 00:00:10]} 9. O-O
{[%clk 00:02:26]} {[%emt 00:00:06]} Bxc3 {[%clk 00:00:46]} {[%emt 00:02:00]} 10.
Qxc3 {[%clk 00:02:26]} {[%emt 00:00:02]} Qe7 {[%clk 00:00:47]} {[%emt
00:00:02]} 11. b3 {[%clk 00:02:07]} {[%emt 00:00:20]} a5 {[%clk 00:00:44]}
{[%emt 00:00:05]} 12. Bb2 {[%clk 00:02:06]} {[%emt 00:00:02]} Re8 {[%clk
00:00:46]} {[%emt 00:00:01]} 13. Rfd1 {[%clk 00:01:55]} {[%emt 00:00:13]} Bg4
{[%clk 00:00:46]} {[%emt 00:00:02]} 14. h3 {[%clk 00:01:51]} {[%emt 00:00:05]}
Bh5 {[%clk 00:00:32]} {[%emt 00:00:17]} 15. Qe3 {[%clk 00:01:09]} {[%emt
00:00:44]} Bg6 {[%clk 00:00:23]} {[%emt 00:00:11]} 16. Nh4 {[%clk 00:00:37]}
{[%emt 00:00:33]} Nb4 {[%clk 00:00:20]} {[%emt 00:00:06]} 17. Nxg6 hxg6 {[%clk
00:00:21]} 18. Qc3 {[%clk 00:00:32]} {[%emt 00:00:03]} Rab8 {[%clk 00:00:12]}
{[%emt 00:00:11]} 19. e3 {[%clk 00:00:27]} {[%emt 00:00:07]} Qc5 {[%clk
00:00:13]} {[%emt 00:00:01]} 20. a3 {[%clk 00:00:20]} {[%emt 00:00:09]} Nc6
{[%clk 00:00:14]} 21. Rd2 {[%clk 00:00:20]} {[%emt 00:00:01]} Rbd8 {[%clk
00:00:10]} {[%emt 00:00:06]} 22. Rad1 {[%clk 00:00:21]} {[%emt 00:00:01]} Rxd2
{[%clk 00:00:11]} {[%emt 00:00:01]} 23. Rxd2 {[%clk 00:00:22]} Kh7 {[%clk
00:00:03]} {[%emt 00:00:09]} 24. Qc2 {[%clk 00:00:11]} {[%emt 00:00:13]} Re7
{[%clk 00:00:04]} {[%emt 00:00:01]} 25. Qc3 {[%clk 00:00:12]} {[%emt 00:00:01]}
Re8 {[%clk 00:00:05]} {[%emt 00:00:02]} 26. Kf1 {[%clk 00:00:11]} {[%emt
00:00:03]} Re7 {[%clk 00:00:06]} 27. Qc2 {[%clk 00:00:09]} {[%emt 00:00:05]}
Ne8 {[%clk 00:00:06]} {[%emt 00:00:02]} 28. Kg1 {[%clk 00:00:10]} {[%emt
00:00:01]} 1/2-1/2